fUST/lending_fUST_20240824
["ID","MTS","AMOUNT","RATE_DAILY","PERIOD"]
[335694394,1724437764158,-634.84130747,0.000125,2]
[335694395,1724437764179,-166.882545,0.00012616,2]
[335694396,1724437764206,-166.882545,0.00012629,2]
[335694397,1724437764226,-166.882545,0.00012641,2]
[335694398,1724437764249,-166.882545,0.00012654,2]
[335694399,1724437764271,-166.882545,0.00012666,2]
[335694400,1724437764293,-166.882545,0.00012679,2]
[335694402,1724437769667,92.87970812,0.00012111,2]
[335694403,1724437769690,16232.00658782,0.00012111,2]
[335694454,1724437833195,-5503.73075509,0.00012548,2]
[335694518,1724437840658,-1699.07934807,0.00012548,2]
[335694520,1724437840670,-1253.85112083,0.00012548,2]
[335694525,1724437840699,-16443.33877601,0.00012548,2]
[335694527,1724437840708,-8847.63316405,0.0001305,2]
[335694528,1724437840717,-7016.11825558,0.0001305,2]
[335694531,1724437840729,-2601.6301199,0.00013333,2]
[335694532,1724437840738,-300.0,0.00013496,2]
[335694535,1724437840748,-300.0,0.00013496,2]
[335694537,1724437840758,-5565.84763285,0.00013499,2]
[335694539,1724437840767,-9663.17336824,0.00013596,2]
[335694540,1724437840777,-1614.06591587,0.00013597,2]
[335694543,1724437840788,-2143.62270035,0.00013599,2]
[335694545,1724437840797,-3093.89381195,0.00013599,2]
[335694547,1724437840807,-500.0,0.00013673,2]
[335694549,1724437840817,-518.68468753,0.00013688,2]
[335694551,1724437840839,-1500.0,0.00013688,2]
[335694553,1724437840848,-569.78751732,0.00013697,2]
[335694555,1724437840858,-42427.98816131,0.00013697,2]
[335694557,1724437840868,-414.461819,0.00013698,2]
[335694559,1724437840877,-500.0,0.00013698,2]
[335694561,1724437840887,-180.0,0.00013698,2]
[335694563,1724437840897,-199.10047352,0.00013698,2]
[335694565,1724437840907,-500.0,0.00013698,2]
[335694567,1724437840917,-500.0,0.00013698,2]
[335694569,1724437840927,-500.0,0.00013698,2]
[335694571,1724437840939,-591.4461819,0.00013698,2]
[335694573,1724437840949,-500.0,0.00013698,2]
[335694575,1724437840958,-156.91314124,0.00013698,2]
[335694577,1724437840969,-601.83952763,0.00013698,2]
[335694580,1724437840980,-154.72922386,0.00013698,2]
[335694582,1724437840990,-1492.842252,0.00013699,2]
[335694583,1724437841000,-3000.0,0.00013699,2]
[335694585,1724437841010,-500.0,0.00013699,2]
[335694587,1724437841022,-500.0,0.00013699,2]
[335694589,1724437841032,-500.0,0.00013699,2]
[335694591,1724437841042,-500.0,0.00013699,2]
[335694593,1724437841052,-500.0,0.00013699,2]
[335694596,1724437841065,-500.0,0.00013699,2]
[335694598,1724437841081,-200.0,0.00013699,2]
[335694600,1724437841090,-500.0,0.00013699,2]
[335694602,1724437841099,-500.0,0.00013699,2]
[335694604,1724437841110,-500.0,0.00013699,2]
[335694606,1724437841120,-500.0,0.00013699,2]
[335694608,1724437841129,-500.0,0.00013699,2]
[335694609,1724437841140,-500.0,0.00013699,2]
[335694610,1724437841149,-500.0,0.00013699,2]
[335694611,1724437841159,-500.0,0.00013699,2]
[335694612,1724437841168,-500.0,0.00013699,2]
[335694613,1724437841178,-500.0,0.00013699,2]
[335694614,1724437841188,-500.0,0.00013699,2]
[335694615,1724437841198,-500.0,0.00013699,2]
[335694616,1724437841208,-500.0,0.00013699,2]
[335694617,1724437841218,-500.0,0.00013699,2]
[335694618,1724437841229,-500.0,0.00013699,2]
[335694619,1724437841238,-500.0,0.00013699,2]
[335694620,1724437841249,-500.0,0.00013699,2]
[335694621,1724437841259,-500.0,0.00013699,2]
[335694622,1724437841269,-500.0,0.00013699,2]
[335694623,1724437841278,-500.0,0.00013699,2]
[335694624,1724437841287,-500.0,0.00013699,2]
[335694625,1724437841297,-500.0,0.00013699,2]
[335694626,1724437841307,-500.0,0.00013699,2]
[335694627,1724437841316,-500.0,0.00013699,2]
[335694629,1724437841331,-500.0,0.00013699,2]
[335694631,1724437841342,-500.0,0.00013699,2]
[335694634,1724437841352,-500.0,0.00013699,2]
[335694636,1724437841361,-500.38438659,0.00013699,2]
[335694638,1724437841371,-500.38438659,0.00013699,2]
[335694640,1724437841380,-500.38438659,0.00013699,2]
[335694641,1724437841390,-500.38438659,0.00013699,2]
[335694643,1724437841399,-500.38438659,0.00013699,2]
[335694645,1724437841409,-500.38438659,0.00013699,2]
[335694648,1724437841419,-500.38438659,0.00013699,2]
[335694649,1724437841428,-500.38438659,0.00013699,2]
[335694652,1724437841438,-500.38438659,0.00013699,2]
[335694654,1724437841448,-500.38438659,0.00013699,2]
[335694656,1724437841458,-500.38438659,0.00013699,2]
[335694658,1724437841469,-500.38438659,0.00013699,2]
[335694660,1724437841479,-500.38438659,0.00013699,2]
[335694662,1724437841489,-500.38438659,0.00013699,2]
[335694664,1724437841499,-500.38438659,0.00013699,2]
[335694666,1724437841508,-500.38438659,0.00013699,2]
[335694668,1724437841518,-500.38438659,0.00013699,2]
[335694670,1724437841527,-500.38438659,0.00013699,2]
[335694672,1724437841537,-500.38438659,0.00013699,2]
[335694674,1724437841547,-500.38438659,0.00013699,2]
[335694676,1724437841557,-500.38438659,0.00013699,2]
[335694678,1724437841568,-500.38438659,0.00013699,2]
[335694680,1724437841587,-500.38438659,0.00013699,2]
[335694682,1724437841596,-500.38438659,0.00013699,2]
[335694684,1724437841606,-500.38438659,0.00013699,2]
[335694686,1724437841616,-500.38438659,0.00013699,2]
[335694688,1724437841625,-500.38438659,0.00013699,2]
[335694690,1724437841635,-500.38438659,0.00013699,2]
[335694692,1724437841644,-500.38438659,0.00013699,2]
[335694694,1724437841654,-500.38438659,0.00013699,2]
[335694696,1724437841664,-500.38438659,0.00013699,2]
[335694698,1724437841674,-500.38438659,0.00013699,2]
[335694700,1724437841683,-500.38438659,0.00013699,2]
[335694702,1724437841693,-500.38438659,0.00013699,2]
[335694704,1724437841703,-500.38438659,0.00013699,2]
[335694706,1724437841712,-500.38438659,0.00013699,2]
[335694708,1724437841722,-500.38438659,0.00013699,2]
[335694710,1724437841732,-500.38438659,0.00013699,2]
[335694712,1724437841742,-500.38438659,0.00013699,2]
[335694714,1724437841751,-500.38438659,0.00013699,2]
[335694716,1724437841760,-500.0,0.00013699,2]
[335694718,1724437841770,-500.0,0.00013699,2]
[335694720,1724437841779,-500.0,0.00013699,2]
[335694723,1724437841790,-500.0,0.00013699,2]
[335694725,1724437841799,-500.0,0.00013699,2]
[335694727,1724437841808,-500.0,0.00013699,2]
[335694728,1724437841818,-500.0,0.00013699,2]
[335694731,1724437841833,-500.0,0.00013699,2]
[335694733,1724437841843,-500.0,0.00013699,2]
[335694735,1724437841853,-155.88111477,0.00013699,2]
[335694737,1724437841863,-500.0,0.00013699,2]
[335694739,1724437841872,-500.0,0.00013699,2]
[335694741,1724437841882,-500.0,0.00013699,2]
[335694743,1724437841891,-500.0,0.00013699,2]
[335694745,1724437841901,-500.0,0.00013699,2]
[335694747,1724437841910,-500.0,0.00013699,2]
[335694749,1724437841920,-500.0,0.00013869,2]
[335694751,1724437841930,-500.0,0.00013869,2]
[335694753,1724437841941,-156.04172297,0.00013869,2]
[335694754,1724437841951,-685.62452919,0.000139,2]
[335694756,1724437841960,-422.48065002,0.00013971,2]
[335694758,1724437841970,-520.86090941,0.00013971,2]
[335694760,1724437841980,-24567.18829174,0.00014,2]
[335694762,1724437841990,-154.72922386,0.00014116,2]
[335694764,1724437841999,-999.51058823,0.00014221,2]
[335694767,1724437842010,-154.98251573,0.00014245,2]
[335694769,1724437842021,-534.85669911,0.00014245,2]
[335694771,1724437842030,-210.32349268,0.00014245,2]
[335694773,1724437842040,-195.13349832,0.00014245,2]
[335694775,1724437842050,-304.30774912,0.00014245,2]
[335694777,1724437842060,-154.74467129,0.00014245,2]
[335694779,1724437842070,-320.39554735,0.00014245,2]
[335694781,1724437842085,-154.72922386,0.00014245,2]
[335694783,1724437842095,-154.72922386,0.00014245,2]
[335694785,1724437842107,-239.34774772,0.00014245,2]
[335694787,1724437842117,-154.92779168,0.00014245,2]
[335694789,1724437842127,-190.14748204,0.00014245,2]
[335694791,1724437842136,-154.72922386,0.00014245,2]
[335694793,1724437842146,-811.71027722,0.00014245,2]
[335694795,1724437842155,-2166.25640825,0.00014245,2]
[335694797,1724437842165,-160.77115221,0.00014245,2]
[335694799,1724437842175,-174.90537191,0.00014245,2]
[335694801,1724437842185,-157.15769108,0.00014245,2]
[335694803,1724437842194,-180.86285832,0.00014245,2]
[335694805,1724437842203,-223.52112672,0.00014245,2]
[335694807,1724437842213,-191.60607295,0.00014245,2]
[335694809,1724437842223,-665.72637695,0.00014245,2]
[335694811,1724437842235,-805.65141602,0.00014245,3]
[335694813,1724437842246,-217.5839933,0.00014245,2]
[335694815,1724437842256,-780.35335208,0.00014245,2]
[335694818,1724437842267,-521.54236624,0.00014245,2]
[335694820,1724437842277,-279.22166571,0.00014245,2]
[335694822,1724437842286,-1098.82897896,0.00014245,2]
[335694824,1724437842296,-811.1651197,0.00014245,2]
[335694826,1724437842308,-495.34936838,0.00014245,2]
[335694828,1724437842317,-154.72922386,0.00014245,2]
[335694830,1724437842331,-408.92946582,0.00014245,2]
[335694832,1724437842340,-688.676981,0.00014245,2]
[335694834,1724437842349,-196.88638747,0.00014245,2]
[335694836,1724437842358,-154.72922386,0.00014245,2]
[335694838,1724437842369,-739.500756,0.00014247,2]
[335694840,1724437842378,-1000.0,0.00014417,2]
[335694842,1724437842388,-1000.0,0.00014417,2]
[335694844,1724437842398,-154.72922386,0.00014519,2]
[335694846,1724437842408,-1766.47659697,0.00014519,2]
[335694848,1724437842418,-728.34861839,0.00014519,2]
[335694850,1724437842428,-420.0,0.00014793,2]
[335694852,1724437842438,-685.62452918,0.00014795,2]
[335694854,1724437842449,-420.0,0.00014846,2]
[335694856,1724437842459,-229.32272251,0.000149,2]
[335694859,1724437842469,-154.74467129,0.00015368,2]
[335694861,1724437842479,-685.62452918,0.0001569,2]
[335694863,1724437842489,-2271.14852663,0.00016,2]
[335694864,1724437842498,-496.0,0.00016215,2]
[335694866,1724437842509,-587.0,0.0001633,2]
[335694868,1724437842518,-5565.84763279,0.00016413,2]
[335694871,1724437842528,-588.88820081,0.00016438,2]
[335694873,1724437842538,-500.0,0.00016438,2]
[335694875,1724437842548,-154.74467129,0.00016481,2]
[335694877,1724437842558,-685.62452918,0.00016585,2]
[335694879,1724437842568,-500.0,0.00016713,2]
[335694881,1724437842580,-591.56337558,0.00016713,2]
[335694883,1724437842590,-761.30910723,0.00016713,2]
[335694885,1724437842600,-761.30910723,0.00016713,2]
[335694887,1724437842610,-761.30910723,0.00016713,2]
[335694889,1724437842619,-761.30910723,0.00016713,2]
[335694891,1724437842629,-761.30910723,0.00016713,2]
[335694893,1724437842639,-25964.08037607,0.00016714,2]
[335694957,1724437843206,-188.63660628,0.00013971,2]
[335694959,1724437843216,-761.30910723,0.00016713,2]
[335694961,1724437843225,-12250.42978752,0.00016714,2]
[335695064,1724437844173,-1238.32441797,0.00013971,2]
[335695066,1724437844183,-155.37804016,0.00014245,2]
[335695068,1724437844192,-761.30910723,0.00016713,2]
[335695070,1724437844201,-761.30910723,0.00016713,2]
[335695072,1724437844211,-320.11912371,0.00016713,2]
[335695074,1724437844220,-761.30910723,0.00016713,2]
[335695076,1724437844231,-3179.96143841,0.00016714,2]
[335695078,1724437844242,-4982.4660481,0.00016724,5]
[335695080,1724437844251,-160.235409,0.0001681,2]
[335695082,1724437844261,-160.235409,0.00016838,2]
[335695084,1724437844271,-160.235409,0.00016866,2]
[335695086,1724437844280,-160.235409,0.00016894,2]
[335695088,1724437844290,-150.112233,0.000169,2]
[335695090,1724437844299,-214.485779,0.00016913,2]
[335695092,1724437844309,-177.775679,0.00016913,2]
[335695094,1724437844318,-275.923381,0.00016913,2]
[335695096,1724437844329,-349.213024,0.00016913,2]
[335695098,1724437844339,-384.089925,0.00016913,2]
[335695100,1724437844348,-209.099971,0.00016913,2]
[335695102,1724437844358,-212.378123,0.00016913,2]
[335695104,1724437844368,-168.423271,0.00016913,2]
[335695106,1724437844377,-205.762889,0.00016913,2]
[335695108,1724437844387,-203.840349,0.00016913,2]
[335695110,1724437844396,-165.357133,0.00016913,2]
[335695112,1724437844406,-160.399233,0.00016913,2]
[335695114,1724437844415,-196.36056,0.00016913,2]
[335695116,1724437844425,-171.437344,0.00016913,2]
[335695118,1724437844434,-195.625297,0.00016913,2]
[335695120,1724437844444,-423.8,0.00016957,2]
[335695122,1724437844455,-1000.0,0.00017,17]
[335695124,1724437844466,-1335.89778296,0.00017,2]
[335695236,1724437846467,-9263.50196518,0.00017,2]
[335695238,1724437846477,-423.8,0.00017075,2]
[335695240,1724437846487,-177.775679,0.00017125,2]
[335695242,1724437846496,-275.923381,0.00017125,2]
[335695244,1724437846506,-349.213024,0.00017125,2]
[335695246,1724437846515,-384.089925,0.00017125,2]
[335695248,1724437846525,-209.099971,0.00017125,2]
[335695250,1724437846535,-212.378123,0.00017125,2]
[335695251,1724437846544,-165.357133,0.00017125,2]
[335695252,1724437846555,-196.36056,0.00017125,2]
[335695253,1724437846565,-171.437344,0.00017125,2]
[335695254,1724437846575,-423.8,0.00017192,2]
[335695255,1724437846587,-150.112233,0.000172,2]
[335695256,1724437846596,-304.41,0.00017247,7]
[335695257,1724437846606,-500.0,0.00017247,7]
[335695258,1724437846615,-500.0,0.00017247,7]
[335695259,1724437846626,-500.0,0.00017247,7]
[335695260,1724437846637,-500.0,0.00017247,7]
[335695261,1724437846648,-630.51,0.00017247,7]
[335695262,1724437846658,-500.0,0.00017247,7]
[335695263,1724437846669,-500.0,0.00017247,7]
[335695264,1724437846678,-500.0,0.00017247,7]
[335695265,1724437846688,-500.0,0.00017247,7]
[335695266,1724437846880,-500.0,0.00017247,7]
[335695267,1724437846890,-500.0,0.00017247,7]
[335695268,1724437846900,-500.0,0.00017247,7]
[335695269,1724437846909,-500.0,0.00017247,7]
[335695270,1724437846921,-500.0,0.00017247,7]
[335695271,1724437846935,-500.0,0.00017247,7]
[335695272,1724437846945,-41394.471602,0.0001728,2]
[335695273,1724437846955,-6796.88277395,0.0001729,2]
[335695274,1724437846966,-366.15075023,0.00017299,2]
[335695275,1724437846977,-423.8,0.00017309,2]
[335695276,1724437846987,-153.0,0.00017331,2]
[335695277,1724437846996,-153.0,0.00017331,2]
[335695278,1724437847005,-177.775679,0.00017336,2]
[335695279,1724437847016,-275.923381,0.00017336,2]
[335695280,1724437847025,-349.213024,0.00017336,2]
[335695281,1724437847035,-384.089925,0.00017336,2]
[335695282,1724437847045,-209.099971,0.00017336,2]
[335695283,1724437847054,-212.378123,0.00017336,2]
[335695284,1724437847064,-165.357133,0.00017336,2]
[335695285,1724437847073,-160.399233,0.00017336,2]
[335695286,1724437847088,-196.36056,0.00017336,2]
[335695287,1724437847098,-171.437344,0.00017336,2]
[335695288,1724437847107,-195.625297,0.00017336,2]
[335695289,1724437847117,-500.0,0.00017373,2]
[335695290,1724437847126,-500.0,0.00017373,2]
[335695291,1724437847136,-500.0,0.00017373,2]
[335695292,1724437847145,-15185.36944139,0.0001739,2]
[335695293,1724437847159,-20157.75454,0.0001739,2]
[335695294,1724437847376,-6051.34762061,0.0001739,2]
[335695295,1724437847387,-40000.0,0.000174,2]
[335695296,1724437847398,-423.8,0.00017426,2]
[335695297,1724437847409,-685.62452918,0.0001748,2]
[335695298,1724437847419,-299.968773,0.00017488,2]
[335695299,1724437847429,-299.968773,0.00017488,2]
[335695300,1724437847439,-299.968773,0.00017498,2]
[335695301,1724437847449,-299.968773,0.00017498,2]
[335695302,1724437847460,-150.112233,0.000175,2]
[335695303,1724437847470,-3000.0,0.000175,2]
[335695304,1724437847480,-576.48388636,0.0001751,2]
[335695305,1724437871180,500.0,0.00027,120]
[335695306,1724437893802,839.41,0.00027,120]
[335695307,1724437902668,839.41,0.00027,120]
[335695308,1724437910245,629.56,0.00027,120]
[335695310,1724437922147,524.64,0.00027,120]
[335695312,1724437945707,524.6,0.00027,120]
[335695313,1724437967079,258.33917251,0.00027,120]
[335695320,1724438057995,258.33917251,0.00027,120]
[335695324,1724438142999,258.33917251,0.00027,120]
[335695328,1724438250006,258.33917251,0.00027,120]
[335695331,1724438335030,376.65050688,0.00027,120]
[335695334,1724438359414,-2143.62270035,0.00012782,2]
[335695335,1724438359440,-250.0,0.0001279,2]
[335695336,1724438359466,-250.0,0.00012825,2]
[335695337,1724438359489,-250.0,0.0001286,2]
[335695338,1724438359511,-1768.286254,0.00012867,2]
[335695339,1724438359536,-250.0,0.00012895,2]
[335695340,1724438359560,-250.0,0.0001293,2]
[335695341,1724438359585,-250.0,0.00012965,2]
[335695342,1724438359607,-12625.42492584,0.00012999,2]
[335695343,1724438359632,-250.0,0.00013,2]
[335695344,1724438359657,-250.0,0.00013035,2]
[335695345,1724438359680,-300.0,0.00013049,2]
[335695346,1724438359705,-300.0,0.00013049,2]
[335695347,1724438359729,-8844.31291251,0.0001305,2]
[335695348,1724438359751,-7018.3532073,0.0001305,2]
[335695363,1724438807460,-156.67432783,0.00012214,2]
[335695364,1724438807484,-61.38807272,0.00012314,2]
[335695365,1724438835379,-136.45989228,0.00012314,2]
[335695366,1724438835405,-197.847965,0.00012348,2]
[335695367,1724438835433,-197.847965,0.00012381,2]
[335695368,1724438835460,-197.847965,0.00012415,2]
[335695369,1724438835481,-197.847965,0.00012449,2]
[335695370,1724438835502,-197.847965,0.00012483,2]
[335695371,1724438835526,-197.847965,0.00012516,2]
[335695372,1724438835548,-300.0,0.0001255,2]
[335695373,1724438835570,-300.0,0.0001255,2]
[335695374,1724438835593,-197.847965,0.0001255,2]
[335695375,1724438835614,-1780.4473171,0.00012551,2]
[335695376,1724438914482,986.17567884,0.00012111,2]
[335695379,1724438956522,3080.88889929,0.00012111,2]
[335695388,1724438958162,3619.6667462,0.00012111,2]
[335695389,1724438961171,-9663.17336824,0.00012356,2]
[335695390,1724438961194,-7016.11825558,0.00012356,2]
[335695391,1724438961217,-300.0,0.00012515,2]
[335695392,1724438961239,-157.81722683,0.00012515,2]
[335695393,1724438969408,2111.27572321,0.00012111,2]
[335695394,1724438976941,24900.0,0.00011763,2]
[335695429,1724439032611,-363.78329078,0.00012516,2]
[335695430,1724439032625,-823.0,0.00012516,2]
[335695466,1724439038615,-197.847965,0.00012584,2]
[335695468,1724439038624,-197.847965,0.00012618,2]
[335695470,1724439038634,-300.0,0.00012628,2]
[335695471,1724439038643,-300.0,0.00012628,2]
[335695472,1724439038654,-1174.19891027,0.00012629,2]
[335695475,1724439038684,-592.2776867,0.00012629,2]
[335695476,1724439038693,-1098.82897896,0.00012629,2]
[335695477,1724439038704,-197.847965,0.00012652,2]
[335695478,1724439038714,-197.847965,0.00012685,2]
[335695479,1724439038724,-197.847965,0.00012719,2]
[335695480,1724439038733,-197.847965,0.00012753,2]
[335695481,1724439038742,-1500.0,0.00012779,2]
[335695482,1724439038752,-154.72922386,0.00012782,2]
[335695483,1724439038762,-37995.85393471,0.00012782,2]
[335695484,1724439039000,-1855.57374104,0.00012782,2]
[335695517,1724439040798,-323.98300035,0.00012356,2]
[335695519,1724439040811,-1804.82905069,0.00012356,2]
[335695521,1724439040822,-2166.25640825,0.00012356,2]
[335695523,1724439040834,-320.39554735,0.00012629,2]
[335695526,1724439040844,-505.85899371,0.00012782,2]
[335695528,1724439040856,-2070.70149185,0.00012782,2]
[335695530,1724439040866,-1614.06591587,0.00012782,2]
[335695532,1724439040875,-811.1651197,0.00012782,2]
[335695534,1724439040884,-197.847965,0.00012787,2]
[335695536,1724439040894,-197.847965,0.0001282,2]
[335695538,1724439040903,-197.847965,0.00012854,2]
[335695540,1724439040914,-197.847965,0.00012888,2]
[335695543,1724439040923,-156.91314124,0.00012898,2]
[335695546,1724439040933,-160.77115221,0.00012898,2]
[335695549,1724439040943,-190.14748204,0.00012898,2]
[335695551,1724439040952,-780.35335208,0.00012898,2]
[335695553,1724439040962,-5666.12749715,0.000129,2]
[335695555,1724439040972,-197.847965,0.00012922,2]
[335695557,1724439040982,-180.86285832,0.00012934,2]
[335695559,1724439040992,-154.92779168,0.00012934,2]
[335695561,1724439041002,-288.40254199,0.00012934,2]
[335695563,1724439041011,-665.72637695,0.00012934,2]
[335695565,1724439041021,-197.847965,0.00012956,2]
[335695567,1724439041030,-520.86090941,0.00012971,2]
[335695568,1724439041040,-223.61425434,0.00012971,2]
[335695569,1724439041049,-174.90537191,0.00012971,2]
[335695570,1724439041059,-157.15769108,0.00012971,2]
[335695572,1724439041069,-728.34861839,0.00012971,2]
[335695574,1724439041078,-408.92946582,0.00012985,2]
[335695576,1724439041088,-154.72922386,0.00012985,2]
[335695578,1724439041098,-569.78751732,0.00012985,2]
[335695580,1724439041107,-154.72922386,0.00012985,2]
[335695582,1724439041117,-154.72922386,0.00012989,2]
[335695584,1724439041126,-210.32349268,0.00012989,2]
[335695586,1724439041136,-154.72922386,0.00012989,2]
[335695588,1724439041146,-154.72922386,0.00012989,2]
[335695590,1724439041156,-304.30774912,0.00012989,2]
[335695592,1724439041166,-154.72922386,0.00012989,2]
[335695594,1724439041176,-8847.63316405,0.00012989,2]
[335695596,1724439041186,-495.34936838,0.00012991,2]
[335695598,1724439041197,-688.676981,0.00012991,2]
[335695600,1724439041206,-422.48065002,0.00012999,2]
[335695602,1724439041216,-2143.62270035,0.00012999,2]
[335695604,1724439041225,-154.72922386,0.00013025,2]
[335695606,1724439041235,-154.72922386,0.00013025,2]
[335695608,1724439041244,-221.80974258,0.00013025,2]
[335695610,1724439041253,-41047.3206708,0.00013041,2]
[335695612,1724439041263,-155.00128586,0.00013051,2]
[335695614,1724439041272,-3093.89381195,0.00013333,2]
[335695616,1724439041282,-191.60607295,0.00013477,2]
[335695618,1724439041292,-301.59897552,0.00013477,2]
[335695620,1724439041306,-154.72922386,0.00013496,2]
[335695622,1724439041316,-154.72922386,0.00013496,2]
[335695624,1724439041326,-601.83952763,0.00013497,2]
[335695626,1724439041338,-888.96590445,0.00013497,2]
[335695628,1724439041348,-518.68468753,0.00013497,2]
[335695630,1724439041358,-521.54236624,0.00013596,2]
[335695632,1724439041368,-548.49962337,0.00013598,2]
[335695634,1724439041380,-500.0,0.00013673,2]
[335695637,1724439041390,-156.04172297,0.00013673,2]
[335695639,1724439041400,-500.0,0.00013673,2]
[335695641,1724439041410,-2601.6301199,0.00013688,2]
[335695643,1724439041419,-805.65141602,0.00013688,3]
[335695645,1724439041430,-811.71027722,0.00013688,2]
[335695647,1724439041440,-41047.3206708,0.00013689,2]
[335695649,1724439041449,-287.93846466,0.00013698,2]
[335695651,1724439041458,-500.0,0.00013698,2]
[335695653,1724439041468,-155.31720081,0.00013698,2]
[335695655,1724439041477,-500.0,0.00013698,2]
[335695657,1724439041487,-500.0,0.00013698,2]
[335695659,1724439041497,-500.0,0.00013698,2]
[335695661,1724439041506,-500.0,0.00013698,2]
[335695663,1724439041516,-500.0,0.00013698,2]
[335695665,1724439041526,-199.10047352,0.00013698,2]
[335695667,1724439041536,-180.0,0.00013698,2]
[335695669,1724439041545,-188.5122782,0.00013698,2]
[335695671,1724439041555,-1492.842252,0.00013699,2]
[335695673,1724439041564,-3000.0,0.00013699,2]
[335695675,1724439041574,-500.0,0.00013699,2]
[335695677,1724439041586,-500.0,0.00013699,2]
[335695679,1724439041596,-500.0,0.00013699,2]
[335695681,1724439041606,-500.0,0.00013699,2]
[335695683,1724439041616,-500.0,0.00013699,2]
[335695685,1724439041626,-500.0,0.00013699,2]
[335695687,1724439041635,-500.0,0.00013699,2]
[335695689,1724439041645,-500.0,0.00013699,2]
[335695691,1724439041655,-500.0,0.00013699,2]
[335695693,1724439041665,-500.0,0.00013699,2]
[335695695,1724439041675,-500.0,0.00013699,2]
[335695697,1724439041685,-500.0,0.00013699,2]
[335695699,1724439041694,-500.0,0.00013699,2]
[335695701,1724439041704,-500.0,0.00013699,2]
[335695703,1724439041714,-500.0,0.00013699,2]
[335695705,1724439041724,-500.0,0.00013699,2]
[335695707,1724439041734,-500.0,0.00013699,2]
[335695709,1724439041744,-500.0,0.00013699,2]
[335695711,1724439041754,-500.0,0.00013699,2]
[335695713,1724439041764,-500.0,0.00013699,2]
[335695716,1724439041774,-500.0,0.00013699,2]
[335695718,1724439041784,-169.45765932,0.00013699,2]
[335695720,1724439041794,-500.0,0.00013699,2]
[335695722,1724439041803,-500.0,0.00013699,2]
[335695724,1724439041814,-500.0,0.00013699,2]
[335695726,1724439041824,-250.0,0.00013699,2]
[335695728,1724439041834,-500.0,0.00013699,2]
[335695730,1724439041844,-500.38438659,0.00013699,2]
[335695732,1724439041853,-500.38438659,0.00013699,2]
[335695734,1724439041863,-500.38438659,0.00013699,2]
[335695736,1724439041873,-500.38438659,0.00013699,2]
[335695738,1724439041883,-500.38438659,0.00013699,2]
[335695740,1724439041892,-195.13349832,0.00013699,2]
[335695742,1724439041901,-500.38438659,0.00013699,2]
[335695744,1724439041910,-500.38438659,0.00013699,2]
[335695746,1724439041920,-500.38438659,0.00013699,2]
[335695748,1724439041929,-500.38438659,0.00013699,2]
[335695750,1724439041939,-500.38438659,0.00013699,2]
[335695752,1724439041948,-500.38438659,0.00013699,2]
[335695754,1724439041957,-500.0,0.00013699,2]
[335695756,1724439041967,-500.0,0.00013699,2]
[335695758,1724439041976,-500.0,0.00013699,2]
[335695760,1724439041986,-500.0,0.00013699,2]
[335695762,1724439041995,-251.72973965,0.00013699,2]
[335695764,1724439042004,-500.0,0.00013699,2]
[335695766,1724439042013,-500.0,0.00013699,2]
[335695768,1724439042023,-500.0,0.00013699,2]
[335695770,1724439042032,-500.0,0.00013699,2]
[335695772,1724439042041,-500.0,0.00013699,2]
[335695774,1724439042051,-500.0,0.00013699,2]
[335695776,1724439042059,-500.0,0.00013699,2]
[335695778,1724439042069,-500.0,0.00013699,2]
[335695780,1724439042078,-500.0,0.00013699,2]
[335695782,1724439042088,-500.0,0.00013699,2]
[335695784,1724439042097,-500.0,0.00013699,2]
[335695786,1724439042107,-500.0,0.00013699,2]
[335695788,1724439042116,-556.5730107,0.00013699,2]